bitfinex-derivatives/quotes_SOLF0:USTF0_20240823
["timestamp","ask_amount","ask_price","bid_price","bid_amount"]
[1724437450313,0.04611271,149.28,149.27,3.3489]
[1724437451016,0.04611271,149.28,149.26,3.39455768]
[1724437452214,0.04611271,149.28,149.27,3.3489]
[1724437453110,30.21692505,149.34,149.27,3.3489]
[1724437453111,26.8,149.34,149.27,38.59]
[1724437453422,5.3506,149.39,149.3,38.59]
[1724437453618,3.3469,149.36,149.22,2.6818]
[1724437453921,38.59,149.37,149.27,38.59]
[1724437454119,0.04770447,149.33,149.31,0.04820997]
[1724437454313,0.04770447,149.33,149.31,0.04251666]
[1724437454713,3.3478,149.32,149.31,0.04251666]
[1724437458327,3.39530447,149.33,149.31,0.04251666]
[1724437459723,0.04770447,149.33,149.31,0.04251666]
[1724437462333,0.04770447,149.33,149.31,3.39041666]
[1724437462826,0.04770447,149.33,149.31,0.04251666]
[1724437463531,3.39540447,149.33,149.31,0.04251666]
[1724437464538,3.3478,149.32,149.31,0.04251666]
[1724437464733,0.04770447,149.33,149.31,0.04251666]
[1724437464943,0.04770447,149.33,149.32,3.3478]
[1724437465131,0.04770447,149.33,149.31,0.04251666]
[1724437466433,3.39530447,149.33,149.31,0.04251666]
[1724437466637,0.04770447,149.33,149.31,0.04251666]
[1724437467144,0.04770447,149.33,149.32,3.3478]
[1724437468036,0.04770447,149.33,149.31,0.04251666]
[1724437468037,0.04770447,149.33,149.31,3.39051666]
[1724437468238,0.04770447,149.33,149.31,0.04251666]
[1724437468438,0.04770447,149.33,149.31,3.39051666]
[1724437468640,0.04770447,149.33,149.31,0.04251666]
[1724437476041,3.3478,149.32,149.31,0.04251666]
[1724437476542,2.67650447,149.33,149.31,0.04251666]
[1724437477745,6.02430447,149.33,149.31,0.04251666]
[1724437478255,0.04770447,149.33,149.31,0.04251666]
[1724437482351,3.3478,149.32,149.31,0.04251666]
[1724437483258,0.04770447,149.33,149.31,0.04251666]
[1724437483951,3.39530447,149.33,149.31,0.04251666]
[1724437484357,0.04770447,149.33,149.31,0.04251666]
[1724437485952,3.3478,149.32,149.31,0.04251666]
[1724437487953,0.04770447,149.33,149.14,29.70492215]
[1724437488155,2.7987,149.31,149.18,38.59]
[1724437488557,3.3489,149.27,149.18,38.59]
[1724437488756,3.3489,149.27,149.23,3.3497]
[1724437488957,3.26839163,149.28,149.18,42.00970916]
[1724437489152,0.04945982,149.26,149.18,42.00970916]
[1724437489460,0.04945982,149.26,149.23,3.3498]
[1724437489758,0.04945982,149.26,149.24,3.3496]
[1724437490350,0.04945982,149.26,149.25,3.3494]
[1724437490554,0.04945982,149.26,149.22,0.04278805]
[1724437491549,0.04945982,149.26,149.24,3.3495]
[1724437491749,0.04945982,149.26,149.22,0.04278805]
[1724437494364,0.04945982,149.26,149.22,38.63278805]
[1724437494562,0.04945982,149.26,149.25,3.3494]
[1724437496160,0.04945982,149.26,149.24,3.3494]
[1724437496552,0.04945982,149.26,149.23,2.5743]
[1724437496862,0.04945982,149.26,149.25,3.3494]
[1724437497658,2.554,149.33,149.24,38.59]
[1724437497961,43.7948,149.38,149.24,38.59]
[1724437498162,43.7948,149.38,149.27,38.59]
[1724437498163,3.3476,149.33,149.27,38.59]
[1724437498359,43.7948,149.38,149.27,41.93617248]
[1724437498760,3.39830065,149.34,149.31,0.05009313]
[1724437499162,0.05080065,149.34,149.31,0.05009313]
[1724437500265,3.3477,149.33,149.31,0.05009313]
[1724437500667,0.05080065,149.34,149.31,0.05009313]
[1724437500866,0.05080065,149.34,149.31,3.39809313]
[1724437501060,0.05080065,149.34,149.31,0.05009313]
[1724437501463,3.28234078,149.33,149.31,0.05009313]
[1724437501658,0.05080065,149.34,149.31,0.05009313]
[1724437501966,3.39820065,149.34,149.31,0.05009313]
[1724437502159,0.05080065,149.34,149.31,0.05009313]
[1724437502364,3.3478,149.32,149.31,0.05009313]
[1724437502562,5.90327412,149.33,149.21,5.5676]
[1724437502563,2.5975,149.33,149.21,5.5676]
[1724437502757,41.138,149.31,149.21,5.5676]
[1724437503065,41.138,149.31,149.23,3.3497]
[1724437503263,3.3491,149.27,149.23,3.3497]
[1724437503666,0.04462033,149.26,149.24,0.04764875]
[1724437503868,0.0507589,149.26,149.24,0.04694482]
[1724437504366,0.0507589,149.26,149.24,38.63694482]
[1724437504571,5.993586,149.33,149.24,41.99579963]
[1724437504771,2.5975,149.33,149.24,41.99579963]
[1724437504966,3.33880908,149.32,149.24,41.99579963]
[1724437505276,41.1875,149.33,149.22,38.59]
[1724437505464,0.05049518,149.29,149.26,0.04604404]
[1724437506066,38.64049518,149.29,149.26,0.04604404]
[1724437506472,3.3489,149.27,149.26,0.04604404]
[1724437507072,3.3487,149.28,149.26,0.04604404]
[1724437507372,0.05049518,149.29,149.26,0.04604404]
[1724437509368,0.05049518,149.29,149.28,3.3487]
[1724437509874,3.41248258,149.37,149.28,3.3487]
[1724437510068,8.0878,149.4,149.28,38.59]
[1724437510379,3.3465,149.38,149.29,2.6965]
[1724437510575,6.63741916,149.38,149.33,3.3476]
[1724437510877,3.29091916,149.38,149.29,2.6965]
[1724437511176,0.04298851,149.37,149.34,0.04901089]
[1724437511774,38.63298851,149.37,149.34,0.04901089]
[1724437512570,3.3471,149.36,149.34,0.04901089]
[1724437513077,38.63298851,149.37,149.34,0.04901089]
[1724437513277,3.3471,149.35,149.34,0.04901089]
[1724437515772,38.59,149.37,149.25,2.5997]
[1724437515980,38.59,149.32,149.25,2.5997]
[1724437516381,38.59,149.32,149.25,3.3492]
[1724437516583,38.59,149.32,149.24,5.4674]
[1724437516781,0.04240552,149.29,149.27,0.05119441]
[1724437516983,0.04240552,149.29,149.27,3.40009441]
[1724437517283,0.04240552,149.29,149.27,0.05119441]
[1724437519182,0.04240552,149.29,149.28,3.3487]
[1724437519985,0.04240552,149.29,149.27,3.39999441]
[1724437520179,0.04240552,149.29,149.27,0.05119441]
[1724437521282,0.04240552,149.29,149.27,3.39999441]
[1724437522380,0.04240552,149.29,149.28,3.3487]
[1724437522584,0.04240552,149.29,149.27,0.05119441]
[1724437522982,41.92422857,149.38,149.27,0.05119441]
[1724437523278,38.59,149.38,149.24,38.59]
[1724437523485,41.85727136,149.38,149.25,6.5705354]
[1724437523685,41.85727136,149.38,149.26,3.23831367]
[1724437523686,3.3475,149.34,149.26,3.23831367]
[1724437523883,38.59,149.3,149.26,3.23831367]
[1724437524088,38.59,149.3,149.27,0.04689428]
[1724437524089,2.6596483,149.29,149.27,0.04689428]
[1724437524383,2.66385,149.29,149.27,0.0433778]
[1724437524581,0.04925,149.29,149.27,0.0433778]
[1724437524779,3.39775,149.29,149.27,0.0433778]
[1724437524977,0.04925,149.29,149.27,0.0433778]
[1724437526485,0.04925,149.29,149.28,3.3487]
[1724437526885,0.04925,149.29,149.27,0.0433778]
[1724437527085,0.04925,149.29,149.27,3.3920778]
[1724437527677,0.04925,149.29,149.27,0.0433778]
[1724437527884,0.04925,149.29,149.15,1.0]
[1724437528085,38.59,149.31,149.16,47.08118674]
[1724437528282,2.6146,149.32,149.21,3.3502]
[1724437528283,38.59,149.28,149.21,3.3502]
[1724437528585,38.59,149.28,149.16,46.447]
[1724437528586,3.39629273,149.27,149.16,46.447]
[1724437528788,3.3499,149.23,149.19,3.3505]
[1724437528981,0.05131622,149.23,149.2,0.05070808]
[1724437529383,3.3502,149.21,149.2,0.05070808]
[1724437530589,38.64131622,149.23,149.2,0.05070808]
[1724437530590,0.05131622,149.23,149.2,0.05070808]
[1724437531488,3.3502,149.21,149.2,0.05070808]
[1724437532094,3.40131622,149.23,149.2,0.05070808]
[1724437532392,0.05131622,149.23,149.2,0.05070808]
[1724437534192,3.3502,149.22,149.2,0.05070808]
[1724437534693,3.40121622,149.23,149.2,0.05070808]
[1724437536591,38.59,149.22,149.07,23.44845576]
[1724437536784,38.59,149.2,149.08,5.86038744]
[1724437536989,2.7239,149.24,149.12,38.59]
[1724437536990,38.59,149.23,149.12,38.59]
[1724437537293,3.3504,149.21,149.13,3.24838744]
[1724437537494,3.3504,149.21,149.14,3.24838744]
[1724437537690,3.3504,149.21,149.15,3.24838744]
[1724437537891,3.3504,149.21,149.16,3.24838744]
[1724437538094,0.04938933,149.19,149.16,0.04990586]
[1724437538687,0.04938933,149.19,149.17,3.3511]
[1724437539094,0.04938933,149.19,149.16,0.04990586]
[1724437539293,3.3509,149.18,149.16,0.04990586]
[1724437539593,0.04938933,149.19,149.16,0.04990586]
[1724437539790,38.63938933,149.19,149.16,0.04990586]
[1724437539991,3.3511,149.17,149.16,0.04990586]
[1724437540192,38.63938933,149.19,149.04,38.59]
[1724437540499,38.59,149.16,149.05,3.25299171]
[1724437540696,38.59,149.16,149.11,3.3523]
[1724437540887,38.59,149.16,149.04,50.18592453]
[1724437541089,3.3517,149.15,149.09,0.04706134]
[1724437541396,0.05031371,149.13,149.11,3.3523]
[1724437542193,0.05031371,149.13,149.09,3.39996134]
[1724437542400,0.05031371,149.13,149.09,0.04706134]
[1724437543403,0.05031371,149.13,149.1,3.3527]
[1724437543891,0.05031371,149.13,149.09,0.04706134]
[1724437544696,0.05031371,149.13,149.1,3.3525]
[1724437545096,0.05031371,149.13,149.09,0.04706134]
[1724437545300,0.05031371,149.13,149.12,3.3523]
[1724437546201,0.05031371,149.13,149.09,0.04706134]
[1724437547699,0.05031371,149.13,149.1,3.3525]
[1724437548702,0.05031371,149.13,149.11,3.3525]
[1724437550002,0.05031371,149.13,149.1,3.3527]
[1724437550200,0.05031371,149.13,149.09,0.04706134]
[1724437552193,0.05031371,149.13,149.11,3.3525]
[1724437552593,0.05031371,149.13,149.1,3.3527]
[1724437554399,0.05031371,149.13,149.09,0.04706134]
[1724437554594,0.05031371,149.13,149.09,3.39996134]
[1724437554595,41.99241371,149.13,149.09,3.39996134]
[1724437555001,41.99241371,149.13,149.09,0.04706134]
[1724437555201,41.99241371,149.13,149.09,3.39996134]
[1724437555408,38.59,149.11,149.09,0.04706134]
[1724437556202,38.59,149.11,149.09,3.39996134]
[1724437556499,38.59,149.11,148.89,3.39097757]
[1724437556500,38.59,149.1,148.92,5.2717]
[1724437556698,38.59,149.01,148.92,7.9789]
[1724437557011,38.59,149.06,148.93,38.59]
[1724437557197,38.59,149.06,148.95,38.59]
[1724437557400,0.05078181,149.02,149.01,3.3546]
[1724437557601,0.04682521,149.03,149.0,0.04595958]
[1724437557900,0.05117568,149.03,149.0,0.0508876]
[1724437558404,38.59,149.1,149.0,0.0508876]
[1724437558599,38.59,149.1,148.99,8.2075]
[1724437559304,0.04218889,149.06,149.03,0.04344134]
[1724437559602,3.2697459,149.11,149.06,3.3536]
[1724437559799,38.59,149.13,149.06,3.3536]
[1724437560196,41.90690896,149.13,149.05,3.3537]
[1724437560403,41.90690896,149.13,149.0,38.59]
[1724437560703,0.05129912,149.08,149.05,0.04471927]
[1724437561400,3.3534,149.07,149.05,0.04471927]
[1724437561606,0.05129912,149.08,149.05,0.04471927]
[1724437561803,0.05129912,149.08,149.05,3.39841927]
[1724437562396,3.40449912,149.08,149.05,0.04471927]
[1724437562808,0.05129912,149.08,149.05,0.04471927]
[1724437563208,0.05129912,149.08,149.05,3.39851927]
[1724437563805,0.05129912,149.08,149.06,3.3536]
[1724437565613,0.05129912,149.08,149.07,3.3534]
[1724437566112,38.59,149.17,149.06,2.8118]
[1724437566305,8.2921,149.25,149.1,38.59]
[1724437566512,38.59,149.23,149.1,38.59]
[1724437566907,38.59,149.23,149.12,38.59]
[1724437567112,38.59,149.23,149.17,3.3509]
[1724437567113,0.04336512,149.19,149.17,3.3509]
[1724437567314,44.68364898,149.25,149.16,3.39840329]
[1724437567507,38.59,149.25,149.17,2.6165]
[1724437567713,41.88276648,149.27,149.17,2.6165]
[1724437568007,38.59,149.3,149.17,41.2065]
[1724437568215,38.59,149.3,149.17,44.51837928]
[1724437568510,0.043722,149.25,149.22,0.04390555]
[1724437568710,41.2335,149.33,149.2,38.59]
[1724437569305,3.3482,149.31,149.25,3.3492]
[1724437569716,0.05120134,149.29,149.27,0.04564857]
[1724437571620,0.05120134,149.29,149.17,5.92837928]
[1724437571621,38.59,149.28,149.17,5.92837928]
[1724437572518,0.05079172,149.24,149.22,3.35]
[1724437572718,0.05079172,149.24,149.21,0.05001372]
[1724437572719,38.59,149.3,149.21,0.05001372]
[1724437573017,3.348,149.31,149.26,3.349]
[1724437573411,41.2335,149.33,149.19,38.59]
[1724437573617,3.3482,149.3,149.25,3.3493]
[1724437573812,0.04922448,149.29,149.26,0.04518731]
[1724437574617,3.39762448,149.29,149.26,0.04518731]
[1724437574818,0.04922448,149.29,149.26,0.04518731]
[1724437575815,3.39772448,149.29,149.26,0.04518731]
[1724437576618,3.3487,149.28,149.26,0.04518731]
[1724437576816,0.04922448,149.29,149.26,0.04518731]
[1724437577521,3.39782448,149.29,149.26,0.04518731]
[1724437577917,0.04922448,149.29,149.26,0.04518731]
[1724437578116,0.04922448,149.29,149.27,3.3489]
[1724437578318,0.04922448,149.29,149.26,0.04518731]
[1724437578715,0.04922448,149.29,149.27,3.3487]
[1724437579420,0.04922448,149.29,149.28,3.3487]
[1724437579628,0.04922448,149.29,149.26,0.04518731]
[1724437581527,2.5838,149.38,149.27,38.59]
[1724437581724,2.5838,149.38,149.28,5.4212]
[1724437581924,38.59,149.35,149.28,5.4212]
[1724437582128,38.59,149.35,149.28,2.7965]
[1724437582317,38.59,149.35,149.22,38.59]
[1724437582517,3.3479,149.32,149.27,3.39600351]
[1724437582827,0.04961125,149.3,149.27,3.39600351]
[1724437583024,0.04961125,149.3,149.27,0.04730351]
[1724437583527,3.39801125,149.3,149.27,0.04730351]
[1724437583727,38.63961125,149.3,149.27,0.04730351]
[1724437583920,3.3484,149.29,149.27,0.04730351]
[1724437584335,38.63961125,149.3,149.27,0.04730351]
[1724437584828,41.98801125,149.3,149.27,0.04730351]
[1724437586226,3.39801125,149.3,149.27,0.04730351]
[1724437586527,0.04961125,149.3,149.27,0.04730351]
[1724437588026,0.04961125,149.3,149.28,3.3486]
[1724437588329,0.04961125,149.3,149.27,0.04730351]
[1724437589029,0.04961125,149.3,149.27,3.39600351]
[1724437589431,0.04961125,149.3,149.27,0.04730351]
[1724437590236,0.04961125,149.3,149.27,3.39610351]
[1724437590535,0.04961125,149.3,149.27,0.04730351]
[1724437591033,3.34187801,149.3,149.27,0.04730351]
[1724437591330,38.63961125,149.3,149.27,0.04730351]
[1724437591628,41.94895373,149.3,149.27,0.04730351]
[1724437591830,2.6149,149.29,149.27,0.04730351]
[1724437592030,3.3487,149.28,149.27,0.04730351]
[1724437592733,3.3492,149.26,149.19,5.4645]
[1724437593129,2.6149,149.29,149.19,5.4645]
[1724437593130,38.59,149.27,149.19,5.4645]
[1724437593330,38.59,149.27,149.19,2.668]
[1724437593531,3.3497,149.24,149.19,3.3506]
[1724437593836,0.04248444,149.23,149.2,0.04415218]
[1724437594031,3.3502,149.21,149.2,0.04225908]
[1724437594234,38.63507289,149.23,149.1,2.651]
[1724437594531,38.59,149.19,149.1,5.98645893]
[1724437594926,3.351,149.18,149.13,3.3518]
[1724437595124,38.59,149.19,149.1,2.651]
[1724437595328,0.04656292,149.16,149.13,0.04338165]
[1724437596125,38.59,149.25,149.14,38.59]
[1724437596533,3.3497,149.24,149.18,3.3507]
[1724437596728,38.59,149.25,149.13,38.59]
[1724437597031,38.59,149.2,149.07,38.59]
[1724437597239,0.04395645,149.15,149.12,0.04731691]
[1724437597437,0.04395645,149.15,149.13,3.3519]
[1724437597632,0.04395645,149.15,149.12,0.04731691]
[1724437598234,0.04395645,149.15,148.95,6.99979383]
[1724437598436,42.00688707,149.15,149.06,3.3535]
[1724437598635,38.59,149.15,149.02,2.6157]
[1724437598934,2.7887,149.14,149.02,2.6157]
[1724437599237,2.7887,149.14,149.04,3.3539]
[1724437599238,6.2022362,149.14,149.04,3.3539]
[1724437599434,0.04545759,149.09,149.07,0.04312107]
[1724437599631,3.39791437,149.09,149.07,0.04312107]
[1724437599939,0.04481437,149.09,149.07,0.04312107]
[1724437601034,3.39791437,149.09,149.07,0.04312107]
[1724437601239,0.04481437,149.09,149.07,0.04312107]
[1724437604333,3.39771437,149.09,149.07,0.04312107]
[1724437604945,0.04481437,149.09,149.07,0.04312107]
[1724437606533,0.04481437,149.09,148.28,191.85617662]
[1724437606534,38.63481437,149.09,148.82,23.04492215]
[1724437606735,2.7597,149.08,148.94,38.59]
[1724437607041,2.7597,149.08,148.95,6.13953797]
[1724437607444,0.04370827,149.03,149.0,0.04219462]
[1724437607943,0.04370827,149.03,149.01,3.3547]
[1724437608144,0.04370827,149.03,149.0,2.63249462]
[1724437608441,3.3527,149.1,149.05,3.3538]
[1724437609037,3.3529,149.09,149.03,3.3541]
[1724437609435,0.0504252,149.07,149.05,0.04532067]
[1724437611437,3.3536,149.06,149.05,0.04532067]
[1724437611947,3.4040252,149.07,149.05,0.04532067]
[1724437612345,0.0504252,149.07,149.05,0.04532067]
[1724437612545,3.3536,149.06,149.05,0.04532067]
[1724437613749,3.4038252,149.07,149.05,0.04532067]
[1724437614048,0.0504252,149.07,149.05,0.04532067]
[1724437615344,0.0504252,149.07,149.06,3.3536]
[1724437615845,0.0504252,149.07,149.05,0.04532067]
[1724437615846,38.6404252,149.07,149.05,0.04532067]
[1724437616249,3.3536,149.06,149.05,0.04532067]
[1724437616442,41.2907,149.07,148.99,3.3551]
[1724437616844,3.3542,149.04,148.99,3.3551]
[1724437617553,0.04342249,149.03,149.0,0.04945801]
[1724437619051,0.04342249,149.03,149.0,3.40435801]
[1724437621453,0.04342249,149.03,149.01,3.3547]
[1724437621654,0.04342249,149.03,149.0,0.04945801]
[1724437621850,2.585,149.12,149.0,38.59]
[1724437622151,38.59,149.1,149.01,2.7499]
[1724437622556,38.59,149.1,149.02,3.3545]
[1724437622751,3.3535,149.07,149.05,0.04866237]
[1724437622957,3.3996927,149.07,149.05,0.04866237]
[1724437624251,0.0461927,149.07,149.05,0.04866237]
[1724437626955,0.0461927,149.07,149.05,3.40246237]
[1724437627259,0.0461927,149.07,149.05,0.04866237]
[1724437627863,3.3995927,149.07,149.05,0.04866237]
[1724437628757,3.3536,149.06,149.05,0.04866237]
[1724437631067,3.3545,149.02,148.98,2.6486]
[1724437631254,38.6361927,149.07,148.98,2.6486]
[1724437631255,38.59,149.07,148.98,2.6486]
[1724437631866,38.59,149.02,148.96,2.7541]
[1724437632061,0.04810609,149.0,148.98,0.04918808]
[1724437632759,0.04810609,149.0,148.81,2.94492215]
[1724437632760,38.59,148.99,148.81,2.94492215]
[1724437633063,38.59,148.99,148.88,5.3761]
[1724437633367,3.3559,148.96,148.88,8.75684902]
[1724437633755,0.04224783,148.93,148.91,0.04893372]
[1724437635062,28.5728,149.06,148.91,0.04893372]
[1724437635361,38.59,149.04,148.9,38.59]
[1724437635761,38.59,149.04,148.88,8.75684902]
[1724437635762,38.59,149.01,148.91,2.753]
[1724437636269,0.04990352,148.97,148.95,0.0498877]
[1724437638972,3.40570352,148.97,148.95,0.0498877]
[1724437639158,0.04990352,148.97,148.95,0.0498877]
[1724437640071,2.6576,149.03,148.95,0.0498877]
[1724437640972,3.3547,149.01,148.96,3.3557]
[1724437641273,0.04308987,149.0,148.96,3.3557]
[1724437641570,38.59,148.97,148.84,38.59]
[1724437641761,38.59,148.97,148.89,2.655]
[1724437642069,3.3559,148.96,148.91,3.3569]
[1724437642271,38.59,148.98,148.89,2.655]
[1724437642466,0.04677756,148.95,148.92,0.04959391]
[1724437643768,3.40307756,148.95,148.92,0.04959391]
[1724437644172,0.04677756,148.95,148.92,0.04959391]
[1724437646679,3.40297756,148.95,148.92,0.04959391]
[1724437649481,3.3563,148.94,148.92,0.04959391]
[1724437649980,0.04677756,148.95,148.92,0.04959391]
[1724437650177,3.40287756,148.95,148.92,0.04959391]
[1724437650580,0.04677756,148.95,148.92,0.04959391]
[1724437651178,0.04677756,148.95,148.92,3.40619391]
[1724437652080,0.04677756,148.95,148.92,0.04959391]
[1724437652876,38.63677756,148.95,148.92,0.04959391]
[1724437654086,41.99297756,148.95,148.92,0.04959391]
[1724437654280,38.63677756,148.95,148.92,0.04959391]
[1724437654682,3.3565,148.93,148.92,0.04959391]
[1724437655385,41.9465,148.93,148.92,0.04959391]
[1724437655586,38.59,148.93,148.85,7.9241]
[1724437655787,38.59,148.93,148.87,3.3577]
[1724437656187,3.3568,148.92,148.87,3.3577]
[1724437656590,0.05004983,148.91,148.88,3.40496419]
[1724437656785,0.05004983,148.91,148.74,7.01081674]
[1724437656786,38.59,148.89,148.74,7.01081674]
[1724437656988,38.59,148.81,148.73,3.43336398]
[1724437657192,38.59,148.81,148.7,8.0472]
[1724437657487,38.59,148.81,148.7,11.34126923]
[1724437657688,38.59,148.81,148.74,0.04809056]
[1724437657890,0.05064333,148.77,148.74,0.04809056]
[1724437659489,3.41074333,148.77,148.74,0.04809056]
[1724437659789,0.05064333,148.77,148.74,0.04809056]
[1724437660383,38.59,148.83,148.74,0.04809056]
[1724437660586,38.59,148.85,148.72,38.59]
[1724437660883,3.3591,148.82,148.72,38.59]
[1724437661087,38.59,148.9,148.77,38.59]
[1724437661287,38.59,148.9,148.79,38.59]
[1724437661485,0.04918398,148.85,148.82,0.04919365]
[1724437661793,38.59,148.92,148.79,41.88717599]
[1724437662684,20.1,149.02,148.79,41.88717599]
[1724437662685,0.05166626,148.87,148.86,38.59]
[1724437662894,26.84,149.04,148.86,38.59]
[1724437663084,38.59,148.99,148.87,2.6988]
[1724437663285,38.59,148.99,148.88,3.3575]
[1724437663695,3.3565,148.94,148.88,3.3575]
[1724437664196,3.3563,148.94,148.92,0.04650236]
[1724437664594,3.3563,148.94,148.88,3.3576]
[1724437664793,3.3566,148.93,148.92,0.05005565]
[1724437665198,0.04779521,148.94,148.92,0.05005565]
[1724437665397,3.40429521,148.94,148.92,0.05005565]
[1724437666496,3.3565,148.93,148.92,0.05005565]
[1724437667200,3.40409521,148.94,148.92,0.05005565]
[1724437667992,3.3565,148.93,148.92,0.05005565]
[1724437669898,3.40419521,148.94,148.92,0.05005565]
[1724437670696,3.40419521,148.94,148.75,38.59]
[1724437670697,38.63779521,148.94,148.75,38.59]
[1724437670899,38.63779521,148.94,148.78,5.2248]
[1724437670900,38.59,148.9,148.78,5.2248]
[1724437671101,3.3585,148.85,148.8,3.3593]
[1724437671403,3.43779117,148.89,148.8,3.3593]
[1724437671705,3.3585,148.85,148.83,0.04892359]
[1724437672506,3.3585,148.84,148.83,0.04892359]
[1724437675005,3.3584,148.85,148.83,0.04892359]
[1724437675307,0.04988958,148.86,148.83,0.04892359]
[1724437675810,0.04988958,148.86,148.83,3.35741136]
[1724437676007,42.02073825,148.94,148.82,38.59]
[1724437676308,3.3576,148.89,148.84,3.3584]
[1724437676807,3.3576,148.89,148.85,3.3583]
[1724437677007,0.05109785,148.88,148.86,0.05004696]
[1724437681911,0.05109785,148.88,148.86,3.40814696]
[1724437682507,42.52,148.96,148.86,0.05004696]
[1724437682703,42.52,148.99,148.86,42.52]
[1724437682907,3.3559,148.96,148.91,3.3568]
[1724437683108,3.3559,148.96,148.87,5.276]
[1724437683109,42.52,148.99,148.87,5.276]
[1724437683315,42.52,149.01,148.89,42.52]
[1724437683615,0.04427085,148.96,148.94,0.04671158]
[1724437683815,0.04325129,148.96,148.94,0.04671158]
[1724437684114,3.39925129,148.96,148.94,0.04671158]
[1724437684308,0.04325129,148.96,148.94,0.04671158]
[1724437684915,3.3561,148.95,148.94,0.04671158]
[1724437685114,0.04325129,148.96,148.94,0.04671158]
[1724437685705,3.3561,148.95,148.94,0.04671158]
[1724437687520,3.39915129,148.96,148.94,0.04671158]
[1724437688715,3.3561,148.95,148.94,0.04671158]
[1724437689323,3.39915129,148.96,148.94,0.04671158]
[1724437689515,0.04325129,148.96,148.94,0.04671158]
[1724437690523,3.3561,148.95,148.94,0.04671158]
[1724437693113,45.91915129,148.96,148.94,0.04671158]
[1724437693527,42.56325129,148.96,148.94,0.04671158]
[1724437693918,3.3561,148.95,148.94,0.04671158]
[1724437695020,45.79706667,148.96,148.87,2.6149]
[1724437695215,42.52,148.92,148.87,2.6149]
[1724437695721,42.52,148.92,148.88,3.3576]
[1724437696021,0.04906607,148.91,148.89,0.0472803]
[1724437696421,3.40606607,148.91,148.89,0.0472803]
[1724437699130,0.04906607,148.91,148.89,0.0472803]
[1724437701530,3.40606607,148.91,148.89,0.0472803]
[1724437701726,0.04906607,148.91,148.89,0.0472803]
[1724437706533,3.40606607,148.91,148.89,0.0472803]
[1724437708137,3.3572,148.9,148.89,0.0472803]
[1724437711531,0.04906607,148.91,148.89,0.0472803]
[1724437712041,3.3572,148.9,148.89,0.0472803]
[1724437712329,0.04906607,148.91,148.89,0.0472803]
[1724437712738,3.40616607,148.91,148.89,0.0472803]
[1724437714828,0.04906607,148.91,148.89,0.0472803]
[1724437717432,0.04906607,148.91,148.9,3.3572]
[1724437718134,0.04906607,148.91,148.89,0.0472803]
[1724437718135,42.52,148.99,148.89,0.0472803]
[1724437718333,42.52,148.99,148.88,2.721]
[1724437718734,42.52,148.99,148.89,2.5703]
[1724437719235,0.0435119,148.95,148.93,0.04385022]
[1724437722739,3.3996119,148.95,148.93,0.04385022]
[1724437724638,0.0435119,148.95,148.93,0.04385022]
[1724437724838,3.3563,148.94,148.93,0.04385022]
[1724437727452,3.3996119,148.95,148.93,0.04385022]
[1724437727848,0.0435119,148.95,148.93,0.04385022]
[1724437728552,3.3563,148.94,148.93,0.04385022]
[1724437730851,3.3997119,148.95,148.93,0.04385022]
[1724437731047,0.0435119,148.95,148.93,0.04385022]
[1724437731460,3.3563,148.94,148.93,0.04385022]
[1724437732454,42.52,148.94,148.79,42.52]
[1724437732652,42.5635119,148.95,148.79,42.52]
[1724437732653,42.52,148.91,148.82,5.5684]
[1724437733054,42.52,148.89,148.82,5.5684]
[1724437733448,0.04354527,148.87,148.84,0.04277106]
[1724437734752,3.40144527,148.87,148.84,3.40127106]
[1724437735259,3.40144527,148.87,148.84,0.04277106]
[1724437735451,0.04354527,148.87,148.84,0.04277106]
[1724437735653,42.56354527,148.87,148.84,0.04277106]
[1724437736256,3.3581,148.86,148.84,0.04277106]
[1724437737055,0.04354527,148.87,148.84,0.04277106]
[1724437737358,0.04354527,148.87,148.85,3.29575743]
[1724437737561,0.04354527,148.87,148.84,0.04277106]
[1724437737864,0.04354527,148.87,148.85,3.29587626]
[1724437738060,0.04354527,148.87,148.84,5.19867106]
[1724437738454,0.04354527,148.87,148.85,6.65338949]
[1724437738657,0.04354527,148.87,148.85,3.3581]
[1724437739357,0.04354527,148.87,148.84,5.19867106]
[1724437739552,0.04354527,148.87,148.85,3.29608497]
[1724437739757,0.04354527,148.87,148.84,5.19867106]